bitfinex/quotes_SOLUSD_20250508
["timestamp","ask_amount","ask_price","bid_price","bid_amount"]
[1746747784585,6.10810998,163.72,163.69,11.84498389]
[1746747784899,6.10761619,163.73,163.7,11.84498389]
[1746747785276,6.10761619,163.73,163.69,11.84498389]
[1746747785588,11.84498389,163.71,163.62,32.0072]
[1746747785779,11.84498389,163.7,163.66,11.84498389]
[1746747785975,11.84498389,163.7,163.65,11.84498389]
[1746747786187,11.84498389,163.69,163.65,11.84498389]
[1746747786687,136.4,163.72,163.65,11.84498389]
[1746747786688,11.84498389,163.7,163.65,11.84498389]
[1746747787391,6.10910868,163.69,163.65,11.84498389]
[1746747787794,6.10910868,163.69,163.66,11.84498389]
[1746747788384,6.10879592,163.7,163.67,11.84498389]
[1746747788703,136.4,163.76,163.69,11.84498389]
[1746747788885,136.4,163.76,163.72,11.84498389]
[1746747788886,148.24498389,163.76,163.72,11.84498389]
[1746747789091,136.4,163.76,163.72,11.84498389]
[1746747789626,142.50652275,163.76,163.73,11.84498389]
[1746747789789,6.10623246,163.77,163.74,11.84498389]
[1746747790898,11.84498389,163.77,163.73,11.84498389]
[1746747791087,11.84498389,163.77,163.72,11.84498389]
[1746747791810,11.84498389,163.77,163.73,11.84498389]
[1746747792373,21.37013065,163.78,163.73,11.84498389]
[1746747792797,33.21511454,163.78,163.74,11.84498389]
[1746747793080,33.21511454,163.78,163.73,11.84498389]
[1746747793280,6.10649731,163.76,163.73,11.84498389]
[1746747794397,17.9514812,163.76,163.72,11.84498389]
[1746747799818,6.10649731,163.76,163.72,11.84498389]
[1746747800019,17.9514812,163.76,163.72,11.84498389]
[1746747800401,17.9514812,163.76,163.69,6.10908641]
[1746747800607,17.9514812,163.76,163.71,11.84498389]
[1746747800918,17.95222708,163.74,163.7,11.84498389]
[1746747801305,11.84498389,163.73,163.69,11.84498389]
[1746747801506,6.10724319,163.74,163.69,11.84498389]
[1746747801706,11.84498389,163.73,163.69,11.84498389]
[1746747802010,6.10724319,163.74,163.68,11.84498389]
[1746747802011,11.84498389,163.72,163.68,11.84498389]
[1746747802313,11.84498389,163.7,163.66,11.84498389]
[1746747802705,6.10873549,163.7,163.66,11.84498389]
[1746747803710,6.10873549,163.7,163.67,11.84498389]
[1746747803997,6.10849072,163.71,163.67,11.84498389]
[1746747804192,6.10761619,163.73,163.69,11.84498389]
[1746747804419,6.10761619,163.73,163.64,6.11092602]
[1746747804420,22.24729849,163.74,163.71,11.84498389]
[1746747804613,142.50698919,163.75,163.72,11.84498389]
[1746747804808,6.10575161,163.78,163.73,11.84498389]
[1746747805019,11.84498389,163.77,163.73,11.84498389]
[1746747805408,11.84498389,163.77,163.69,1.6176]
[1746747805409,11.84498389,163.77,163.72,11.84498389]
[1746747805822,18.9094032,163.77,163.72,18.9094032]
[1746747806223,18.9094032,163.73,163.69,1.6176]
[1746747806431,18.9094032,163.73,163.68,25.4341032]
[1746747806605,18.9094032,163.73,163.65,27.5472]
[1746747806808,6.10798924,163.72,163.68,18.9094032]
[1746747807214,18.9094032,163.71,163.66,18.9094032]
[1746747807524,18.9094032,163.7,163.66,18.9094032]
[1746747808028,18.9094032,163.71,163.66,18.9094032]
[1746747808411,18.9094032,163.71,163.67,18.9094032]
[1746747808609,18.9094032,163.7,163.64,6.1518]
[1746747808816,6.10910868,163.69,163.66,18.9094032]
[1746747810220,25.01851188,163.69,163.64,18.9094032]
[1746747810617,25.01851188,163.69,163.65,18.9094032]
[1746747811324,25.01851188,163.69,163.64,18.9094032]
[1746747812027,18.9094032,163.68,163.64,18.9094032]
[1746747812924,6.10910868,163.69,163.64,18.9094032]
[1746747813120,6.10910868,163.69,163.65,18.9094032]
[1746747813723,6.10910868,163.69,163.66,18.9094032]
[1746747814035,16.81417312,163.72,163.68,18.9094032]
[1746747814036,6.10809625,163.72,163.68,18.9094032]
[1746747814215,6.10809625,163.72,163.7,18.9094032]
[1746747814672,6.10809625,163.72,163.68,18.9094032]
[1746747814842,25.01749945,163.72,163.67,18.9094032]
[1746747815008,25.01749945,163.72,163.68,18.9094032]
[1746747815813,6.10809625,163.72,163.68,18.9094032]
[1746747817834,6.10809625,163.72,163.64,6.11096208]
[1746747818042,6.10809625,163.72,163.68,18.9094032]
[1746747819211,6.10809625,163.72,163.69,18.9094032]
[1746747820335,6.10809625,163.72,163.68,18.9094032]
[1746747820513,25.01749945,163.72,163.68,18.9094032]
[1746747820716,25.01749945,163.72,163.67,18.9094032]
[1746747821237,6.10809625,163.72,163.64,6.11097531]
[1746747821542,6.10809625,163.72,163.69,18.9094032]
[1746747822540,136.4,163.76,163.71,18.9094032]
[1746747822837,136.4,163.76,163.68,1.5229]
[1746747823019,136.4,163.76,163.72,18.9094032]
[1746747823416,6.10687022,163.75,163.73,18.9094032]
[1746747823612,142.50657526,163.76,163.73,18.9094032]
[1746747823816,6.10575161,163.78,163.75,18.9094032]
[1746747824032,6.10575161,163.78,163.76,18.9094032]
[1746747825022,6.10575161,163.78,163.75,18.9094032]
[1746747826228,6.10575161,163.78,163.74,18.9094032]
[1746747827839,25.01515481,163.78,163.7,6.10862106]
[1746747828025,25.01515481,163.78,163.74,18.9094032]
[1746747828546,6.10575161,163.78,163.74,18.9094032]
[1746747831744,6.10575161,163.78,163.74,11.81600761]
[1746747832139,17.92175922,163.78,163.74,11.81600761]
[1746747834245,6.10575161,163.78,163.74,11.81600761]
[1746747834543,7.10575161,163.78,163.74,11.81600761]
[1746747836650,18.92175922,163.78,163.7,6.10873549]
[1746747836942,18.92175922,163.78,163.74,11.81600761]
[1746747838036,7.10575161,163.78,163.74,11.81600761]
[1746747839751,6.80051161,163.78,163.74,11.81600761]
[1746747842753,18.61651922,163.78,163.74,11.81600761]
[1746747844252,6.80051161,163.78,163.75,11.81600761]
[1746747844754,6.80051161,163.78,163.71,6.10826716]
[1746747844755,1.0,163.78,163.77,11.81600761]
[1746747845137,1.0,163.78,163.77,17.92213205]
[1746747845656,1.0,163.78,163.77,11.81600761]
[1746747845850,1.0,163.78,163.75,26.0]
[1746747846028,1.0,163.78,163.77,11.81600761]
[1746747846731,1.0,163.78,163.74,1.62]
[1746747847042,7.10578274,163.78,163.76,11.81600761]
[1746747847236,7.10578274,163.78,163.75,11.81600761]
[1746747847444,11.81600761,163.77,163.73,11.81600761]
[1746747847827,11.81600761,163.77,163.72,11.81600761]
[1746747848031,7.10578274,163.78,163.73,11.81600761]
[1746747848245,18.92179035,163.78,163.74,11.81600761]
[1746747848447,7.10578274,163.78,163.75,11.81600761]
[1746747849043,7.10578274,163.78,163.76,11.81600761]
[1746747849239,7.10578274,163.78,163.75,11.81600761]
[1746747849756,7.10578274,163.78,163.74,11.81600761]
[1746747850949,18.92179035,163.78,163.74,11.81600761]
[1746747851345,7.10578274,163.78,163.74,11.81600761]
[1746747853560,7.10578274,163.78,163.71,6.10826174]
[1746747853561,7.10578274,163.78,163.75,11.81600761]
[1746747855038,7.10578274,163.78,163.76,11.81600761]
[1746747856155,1.0,163.78,163.77,11.81600761]
[1746747857055,1.0,163.78,163.77,37.81600761]
[1746747857962,1.0,163.78,163.77,43.92213205]
[1746747859457,1.0,163.78,163.77,37.81600761]
[1746747862547,1.0,163.78,163.77,11.81600761]
[1746747870972,7.10579182,163.78,163.76,11.81600761]
[1746747871159,1.0,163.78,163.76,11.81600761]
[1746747871772,7.10580564,163.78,163.76,11.81600761]
[1746747872073,1.0,163.78,163.76,11.81600761]
[1746747872576,1.0,163.78,163.77,11.81600761]
[1746747872775,1.0,163.78,163.73,32.10751413]
[1746747872979,1.0,163.78,163.77,11.81600761]
[1746747876055,1.0,163.78,163.73,32.10749986]
[1746747876255,7.10577422,163.78,163.77,11.81600761]
[1746747876479,1.0,163.78,163.77,11.81600761]
[1746747877269,1.0,163.78,163.74,6.10721399]
[1746747877468,1.0,163.78,163.77,11.81600761]
[1746747879580,7.10575161,163.78,163.76,11.81600761]
[1746747880869,1.0,163.78,163.77,11.81600761]
[1746747881262,1.0,163.78,163.76,11.81600761]
[1746747881670,1.0,163.78,163.77,11.81600761]
[1746747884167,7.10575161,163.78,163.77,11.81600761]
[1746747885187,7.10575161,163.78,163.72,14.02131117]
[1746747885485,7.10575161,163.78,163.76,11.81600761]
[1746747887674,7.10575161,163.78,163.77,11.81600761]
[1746747891680,7.10575161,163.78,163.76,12.08400867]
[1746747892280,7.10575161,163.78,163.77,11.81600761]
[1746747892469,7.10575161,163.78,163.76,0.26800106]
[1746747892797,7.10575161,163.78,163.76,12.08400867]
[1746747893171,7.10575161,163.78,163.76,0.26800106]
[1746747894604,7.10575161,163.78,163.76,12.08400867]
[1746747896396,7.10575161,163.78,163.76,0.26800106]
[1746747896602,7.10575161,163.78,163.76,12.08400867]
[1746747897227,8.10575161,163.78,163.76,12.08400867]
[1746747898597,8.10575161,163.78,163.76,0.26800106]
[1746747898802,8.10575161,163.78,163.76,12.08400867]
[1746747900799,8.10575161,163.78,163.76,0.26800106]
[1746747901001,166.86565647,163.77,163.76,0.26800106]
[1746747902002,30.46565647,163.77,163.76,0.26800106]
[1746747902697,36.57178091,163.77,163.76,0.26800106]
[1746747903275,78.67178091,163.77,163.76,0.26800106]
[1746747903481,66.8557733,163.77,163.76,0.26800106]
[1746747903684,80.17418091,163.77,163.76,0.26800106]
[1746747904279,26.2581733,163.77,163.76,0.26800106]
[1746747904486,54.17418091,163.77,163.76,0.26800106]
[1746747904698,26.0,163.74,163.7,11.81600761]
[1746747905093,136.4,163.76,163.73,11.81600761]
[1746747905401,2.0,163.78,163.75,11.81600761]
[1746747905402,8.10583917,163.78,163.75,11.81600761]
[1746747905605,8.10583917,163.78,163.77,11.81600761]
[1746747906497,8.10583917,163.78,163.76,11.81600761]
[1746747906886,2.0,163.78,163.77,11.81600761]
[1746747910286,2.0,163.78,163.73,6.10761619]
[1746747910481,8.1058304,163.78,163.76,11.81600761]
[1746747910696,2.0,163.78,163.76,11.81600761]
[1746747910894,2.0,163.78,163.77,11.81600761]
[1746747922422,1.0,163.79,163.77,17.92213205]
[1746747922594,1.0,163.79,163.78,11.81600761]
[1746747923312,11.25759004,163.87,163.78,11.81600761]
[1746747923489,6.10277065,163.86,163.84,11.81600761]
[1746747926504,33.1757049,163.86,163.81,11.81600761]
[1746747926903,11.81600761,163.85,163.81,11.81600761]
[1746747927311,33.1757049,163.86,163.81,11.81600761]
[1746747927623,21.35969729,163.86,163.81,11.81600761]
[1746747927801,21.35969729,163.86,163.83,11.81600761]
[1746747928422,21.35969729,163.86,163.84,11.81600761]
[1746747928601,21.35969729,163.86,163.83,11.81600761]
[1746747928918,21.35969729,163.86,163.82,11.81600761]
[1746747929315,21.35969729,163.86,163.83,11.81600761]
[1746747932609,21.35969729,163.86,163.76,83.87159316]
[1746747932610,21.35969729,163.86,163.82,11.81600761]
[1746747933135,21.35969729,163.86,163.83,11.81600761]
[1746747933308,21.35969729,163.86,163.84,11.81600761]
[1746747933501,21.35969729,163.86,163.85,11.81600761]
[1746747933704,6.10277065,163.86,163.85,11.81600761]
[1746747934752,21.35709055,163.88,163.85,11.81600761]
[1746747934933,21.35709055,163.88,163.86,11.81600761]
[1746747935527,21.35709055,163.88,163.87,11.81600761]
[1746747936805,6.10128126,163.9,163.87,11.81600761]
[1746747937128,6.10128126,163.9,163.89,11.81600761]
[1746747937428,6.10128126,163.9,163.88,11.81600761]
[1746747937800,6.10128126,163.9,163.84,12.08400867]
[1746747938009,6.10128126,163.9,163.88,11.81600761]
[1746747938316,6.10128126,163.9,163.89,11.81600761]
[1746747938502,6.10128126,163.9,163.88,11.81600761]
[1746747938919,6.10090903,163.91,163.88,11.81600761]
[1746747939318,6.10090903,163.91,163.89,11.81600761]
[1746747939510,21.35318161,163.91,163.88,11.81600761]
[1746747945530,21.35318161,163.91,163.84,0.26800106]
[1746747945714,33.16918922,163.91,163.86,11.81600761]
[1746747945920,33.16918922,163.91,163.87,11.81600761]
[1746747946937,33.16918922,163.91,163.86,11.81600761]
[1746747947610,21.35318161,163.91,163.86,11.81600761]
[1746747947818,33.16918922,163.91,163.86,11.81600761]
[1746747949717,33.16918922,163.91,163.87,11.81600761]
[1746747950822,21.35318161,163.91,163.87,11.81600761]
[1746747951026,33.16918922,163.91,163.87,11.81600761]
[1746747951638,21.35318161,163.91,163.87,11.81600761]
[1746747951819,21.35318161,163.91,163.88,11.81600761]
[1746747952014,21.35318161,163.91,163.87,11.81600761]
[1746747953138,33.16918922,163.91,163.86,11.81600761]
[1746747953440,11.81600761,163.9,163.86,11.81600761]
[1746747953647,6.10165354,163.89,163.86,11.81600761]
[1746747953819,21.35578741,163.89,163.86,11.81600761]
[1746747957061,21.35578741,163.89,163.88,11.81600761]
[1746747957215,21.35578741,163.89,163.87,11.81600761]
[1746747957912,15.25413387,163.89,163.87,11.81600761]
[1746747958909,6.10090903,163.91,163.87,11.81600761]
[1746747959241,6.10090903,163.91,163.89,11.81600761]
[1746747959916,21.35235241,163.92,163.89,11.81600761]
[1746747960610,21.35235241,163.92,163.9,11.81600761]
[1746747961043,21.35235241,163.92,163.89,11.81600761]
[1746747962742,33.16836002,163.92,163.88,11.81600761]
[1746747962914,33.16836002,163.92,163.82,36.90735345]
[1746747962915,11.81600761,163.91,163.82,36.90735345]
[1746747963118,21.35235241,163.92,163.86,11.81600761]
[1746747963328,11.81600761,163.91,163.87,11.81600761]
[1746747964455,6.10128126,163.9,163.87,11.81600761]
[1746747965343,11.81600761,163.89,163.85,11.81600761]
[1746747965544,11.81600761,163.88,163.83,11.81600761]
[1746747965937,11.81600761,163.86,163.82,11.81600761]
[1746747966139,11.81600761,163.86,163.81,11.81600761]
[1746747966535,33.17700851,163.85,163.8,11.81600761]
[1746747966741,11.81600761,163.84,163.8,11.81600761]
[1746747967436,11.81600761,163.82,163.78,11.81600761]
[1746747967746,11.81600761,163.83,163.79,11.81600761]
[1746747967937,37.4010009,163.85,163.79,11.81600761]
[1746747968141,11.81600761,163.83,163.79,11.81600761]
[1746747968649,6.10426077,163.82,163.79,11.81600761]
[1746747969150,6.10426077,163.82,163.8,11.81600761]
[1746747969545,21.3649127,163.82,163.79,11.81600761]
[1746747971446,21.3649127,163.82,163.78,11.81600761]
[1746747971653,21.3649127,163.82,163.77,11.81600761]
[1746747971654,33.18092031,163.82,163.77,11.81600761]
[1746747971828,33.18092031,163.82,163.74,7.6222]
[1746747971829,11.81600761,163.8,163.74,7.6222]
[1746747972158,11.81600761,163.79,163.75,11.81600761]
[1746747972451,11.81600761,163.78,163.74,11.81600761]
[1746747972650,11.81600761,163.78,163.7,7.9964]
[1746747972651,16.04,163.79,163.75,11.81600761]
[1746747972824,27.85600761,163.79,163.75,11.81600761]
[1746747973147,6.10575161,163.78,163.75,11.81600761]
[1746747975852,11.81600761,163.77,163.7,7.9964]
[1746747976068,11.81600761,163.77,163.73,11.81600761]
[1746747977865,6.10649731,163.76,163.73,11.81600761]
[1746747978741,21.37143554,163.77,163.73,11.81600761]
[1746747978938,6.10388817,163.83,163.76,11.81600761]
[1746747979146,6.10388817,163.83,163.82,11.81600761]
[1746747979341,6.10314311,163.85,163.82,11.81600761]
[1746747979536,6.10128126,163.9,163.84,23.63201522]
[1746747979738,6.10128126,163.9,163.88,11.81600761]
[1746747979943,6.10128126,163.9,163.87,11.81600761]
[1746747980143,15.25481705,163.89,163.85,11.81600761]
[1746747980550,15.25481705,163.89,163.86,11.81600761]
[1746747980855,21.35647059,163.89,163.86,11.81600761]
[1746747981049,21.35647059,163.89,163.88,11.81600761]
[1746747981050,6.10165354,163.89,163.88,11.81600761]
[1746747981737,6.10165354,163.89,163.88,18.87195424]
[1746747982148,21.35318161,163.91,163.88,18.87195424]
[1746747983252,40.22513585,163.91,163.86,18.87195424]
[1746747983558,40.22513585,163.91,163.81,26.0]
[1746747983559,51.85772678,163.91,163.85,18.87195424]
[1746747983756,18.87195424,163.9,163.86,18.87195424]
[1746747984052,51.85772678,163.91,163.85,18.87195424]
[1746747984053,40.22774165,163.89,163.85,18.87195424]
[1746747984256,40.22774165,163.89,163.81,26.0]
[1746747984465,40.22774165,163.89,163.85,18.87195424]
[1746747984960,40.22774165,163.89,163.84,18.87195424]
[1746747985159,18.87195424,163.88,163.84,18.87195424]
[1746747985335,18.87195424,163.88,163.83,18.87195424]
[1746747985753,18.87195424,163.87,163.82,18.87195424]
[1746747985931,18.87195424,163.85,163.8,18.87195424]
[1746747986135,40.23425892,163.84,163.8,18.87195424]
[1746747986556,21.36230468,163.84,163.8,18.87195424]
[1746747986860,21.36230468,163.84,163.81,18.87195424]
[1746747987054,21.36230468,163.84,163.83,18.87195424]
[1746747988160,15.25878906,163.84,163.83,18.87195424]
[1746747988540,15.25878906,163.84,163.77,34.1787]
[1746747988739,15.25878906,163.84,163.82,18.87195424]
[1746747989773,15.25878906,163.84,163.81,18.87195424]
[1746747990963,34.1307433,163.84,163.79,18.87195424]
[1746747991147,18.87195424,163.82,163.78,18.87195424]
[1746747991462,18.87195424,163.82,163.74,98.32]
[1746747991463,18.87195424,163.82,163.77,18.87195424]
[1746747991960,40.23817119,163.81,163.77,18.87195424]
[1746747992266,40.23817119,163.81,163.76,18.87195424]
[1746747992957,18.87195424,163.8,163.76,18.87195424]
[1746747993142,56.25817119,163.81,163.76,18.87195424]
[1746747994154,37.38621695,163.81,163.76,18.87195424]
[1746747994353,56.25817119,163.81,163.76,18.87195424]
[1746747994553,56.25817119,163.81,163.77,18.87195424]
[1746747994756,56.25817119,163.81,163.75,0.26800106]
[1746747994757,67.90938403,163.81,163.75,0.26800106]
[1746747994949,18.87195424,163.77,163.75,0.26800106]
[1746747995267,18.87195424,163.76,163.75,0.26800106]
[1746747996967,24.97845155,163.76,163.75,0.26800106]
[1746747998250,6.10649731,163.76,163.75,0.26800106]
[1746747998672,24.97845155,163.76,163.75,0.26800106]
[1746747999060,40.99845155,163.76,163.75,0.26800106]
[1746747999579,22.12649731,163.76,163.75,0.26800106]
[1746747999771,40.99845155,163.76,163.75,0.26800106]
[1746748000775,22.12649731,163.76,163.75,0.26800106]
[1746748000980,6.10649731,163.76,163.75,0.26800106]
[1746748001173,6.10649731,163.76,163.75,19.1399553]
[1746748001482,6.10575161,163.78,163.75,19.1399553]
[1746748001653,22.12388817,163.83,163.77,18.87195424]
[1746748001852,22.12388817,163.83,163.81,18.87195424]
[1746748002051,22.12388817,163.83,163.79,18.87195424]
[1746748002370,37.5216031,163.82,163.77,18.87195424]
[1746748002675,37.5216031,163.82,163.75,0.26800106]
[1746748002676,18.87195424,163.79,163.75,0.26800106]
[1746748002874,155.04964886,163.82,163.75,19.1399553]
[1746748002875,18.87195424,163.8,163.75,19.1399553]
[1746748003355,155.04964886,163.82,163.75,19.1399553]
[1746748003554,18.87195424,163.8,163.75,19.1399553]
[1746748003860,6.10537883,163.79,163.75,19.1399553]
[1746748004387,6.10537883,163.79,163.77,18.87195424]
[1746748005159,6.10537883,163.79,163.75,0.26800106]
[1746748005361,6.10537883,163.79,163.75,19.1399553]
[1746748005662,6.10537883,163.79,163.75,0.26800106]
[1746748005963,6.10537883,163.79,163.75,19.1399553]
[1746748006671,21.36882592,163.79,163.75,19.1399553]
[1746748006881,40.24078016,163.79,163.75,0.26800106]
[1746748007256,21.36882592,163.79,163.75,19.1399553]
[1746748007456,40.24078016,163.79,163.75,19.1399553]
[1746748007779,40.24078016,163.79,163.75,0.26800106]
[1746748007980,18.87195424,163.78,163.75,0.26800106]
[1746748008786,37.5216031,163.78,163.75,0.26800106]
[1746748008985,18.87195424,163.76,163.75,0.26800106]
[1746748009165,34.89195424,163.76,163.75,0.26800106]
[1746748009364,16.02,163.76,163.75,0.26800106]
[1746748009663,34.89195424,163.76,163.75,0.26800106]
[1746748010781,40.99845155,163.76,163.75,0.26800106]
[1746748011559,22.12649731,163.76,163.75,0.26800106]
[1746748011759,40.99845155,163.76,163.75,0.26800106]
[1746748011955,22.12649731,163.76,163.75,0.26800106]
[1746748012269,40.99845155,163.76,163.75,0.26800106]
[1746748014983,22.12649731,163.76,163.75,0.26800106]
[1746748015185,40.99845155,163.76,163.75,0.26800106]
[1746748016980,59.64810041,163.76,163.75,0.26800106]
[1746748018075,6.10649731,163.76,163.75,0.26800106]
[1746748020359,16.02,163.78,163.75,19.1399553]
[1746748020765,22.12586491,163.78,163.75,19.1399553]
[1746748021597,40.99781915,163.78,163.75,0.26800106]
[1746748021778,18.87195424,163.76,163.75,0.26800106]
[1746748021982,24.97845155,163.76,163.75,0.26800106]
[1746748022582,6.10649731,163.76,163.75,0.26800106]
[1746748022781,24.97845155,163.76,163.75,0.26800106]
[1746748023083,6.10649731,163.76,163.75,0.26800106]
[1746748024291,6.10612444,163.77,163.75,0.26800106]
[1746748029190,24.97807868,163.77,163.75,0.26800106]
[1746748029898,6.10612444,163.77,163.75,0.26800106]
[1746748032597,17.92204905,163.77,163.75,0.26800106]
[1746748032794,11.81592461,163.76,163.75,0.26800106]
[1746748033794,17.92242192,163.76,163.75,0.26800106]
[1746748034680,29.73834653,163.76,163.75,0.26800106]
[1746748035215,17.92242192,163.76,163.75,0.26800106]
[1746748038097,6.10649731,163.76,163.75,0.26800106]
[1746748038298,6.10575161,163.78,163.75,12.08392567]
[1746748038595,142.5054378,163.79,163.77,11.81592461]
[1746748038798,11.81592461,163.82,163.78,11.81592461]
[1746748038799,6.10426077,163.82,163.78,11.81592461]
[1746748038975,6.10426077,163.82,163.79,11.81592461]
[1746748039372,6.10277065,163.86,163.81,11.81592461]
[1746748039577,6.10277065,163.86,163.82,37.81592461]
[1746748039788,17.91869526,163.86,163.82,37.81592461]
[1746748039968,6.10277065,163.86,163.82,37.81592461]
[1746748040374,17.91869526,163.86,163.82,26.0]
[1746748041070,6.10277065,163.86,163.82,37.81592461]
[1746748041304,17.91869526,163.86,163.82,37.81592461]
[1746748041805,24.98885541,163.86,163.82,26.0]
[1746748043900,18.88608476,163.83,163.76,1.5861]
[1746748044212,18.88608476,163.8,163.79,26.0]
[1746748044580,18.88608476,163.81,163.76,20.47218476]
[1746748044785,18.88608476,163.79,163.76,1.5861]
[1746748044999,18.88608476,163.79,163.76,27.5861]
[1746748045600,18.88608476,163.8,163.76,27.5861]
[1746748045795,6.10575161,163.78,163.76,26.0]
[1746748045984,24.99183637,163.78,163.76,26.0]
[1746748046183,6.10575161,163.78,163.76,26.0]
[1746748047315,151.6620136,163.81,163.76,44.88608476]
[1746748047613,24.99109086,163.8,163.76,44.88608476]
[1746748047915,6.1050061,163.8,163.76,44.88608476]
[1746748048087,24.98997293,163.83,163.81,26.0]
[1746748048411,6.10388817,163.83,163.81,26.0]
[1746748048583,24.98997293,163.83,163.81,26.0]
[1746748049017,6.10388817,163.83,163.81,26.0]
[1746748049384,24.98997293,163.83,163.79,18.88608476]
[1746748049583,6.10388817,163.83,163.8,26.0]
[1746748050013,21.36230468,163.84,163.78,44.88608476]
[1746748050308,18.88608476,163.82,163.78,44.88608476]
[1746748050520,18.88608476,163.82,163.78,26.0]
[1746748051405,18.88608476,163.83,163.79,0.5]
[1746748052218,21.36230468,163.84,163.79,0.5]
[1746748052404,24.98960038,163.84,163.79,0.5]
[1746748052606,6.10351562,163.84,163.81,44.88608476]
[1746748052905,136.4,163.9,163.83,18.88608476]
[1746748052906,6.10277065,163.86,163.83,18.88608476]
[1746748053108,6.10165354,163.89,163.85,44.88608476]
[1746748053284,24.9877383,163.89,163.85,44.88608476]
[1746748053487,18.88608476,163.87,163.85,26.0]
[1746748053688,18.88608476,163.86,163.81,26.0]
[1746748053887,18.88608476,163.84,163.81,26.0]
[1746748054194,18.88608476,163.85,163.81,26.0]
[1746748054389,6.10351562,163.84,163.81,44.88608476]
[1746748054835,6.10351562,163.84,163.81,26.0]
[1746748055789,24.98960038,163.84,163.81,26.0]
[1746748056087,6.10351562,163.84,163.81,26.0]
[1746748056314,6.10313728,163.86,163.82,18.88608476]
[1746748056503,6.10313728,163.86,163.83,18.88608476]
[1746748056824,18.88608476,163.84,163.82,26.5]
[1746748056990,18.88608476,163.83,163.82,26.0]
[1746748058407,6.10239824,163.87,163.82,26.0]
[1746748058614,24.988483,163.87,163.82,26.0]
[1746748058816,18.88608476,163.86,163.82,26.0]
[1746748058994,6.10239824,163.87,163.83,18.88608476]
[1746748059717,6.10239824,163.87,163.84,18.88608476]
[1746748060833,15.25477651,163.89,163.85,44.88608476]
[1746748060834,6.10170885,163.89,163.85,44.88608476]
[1746748061308,24.98779361,163.89,163.85,44.88608476]
[1746748062110,18.88608476,163.88,163.84,44.88608476]
[1746748062304,18.88608476,163.87,163.84,26.0]
[1746748062505,6.10277065,163.86,163.84,26.0]
[1746748062715,6.10277065,163.86,163.83,20.47758476]
[1746748062716,6.10277065,163.86,163.83,46.47758476]
[1746748063013,15.25196474,163.92,163.86,26.0]
[1746748063196,18.88608476,163.9,163.86,26.0]
[1746748063398,18.88608476,163.89,163.84,51.12108476]
[1746748063797,18.88608476,163.88,163.84,44.88608476]
[1746748063997,18.88608476,163.89,163.84,44.88608476]
[1746748064613,6.10202587,163.88,163.84,44.88608476]
[1746748064823,6.10090903,163.91,163.86,18.88608476]
[1746748064997,18.88608476,163.9,163.86,18.88608476]
[1746748065804,18.88608476,163.9,163.85,18.88608476]
[1746748066215,18.88608476,163.9,163.86,18.88608476]
[1746748066615,6.10165354,163.89,163.86,18.88608476]
[1746748067000,6.10131753,163.9,163.87,26.0]
[1746748067295,6.10131753,163.9,163.88,44.88608476]
[1746748067711,6.10089219,163.92,163.89,18.88608476]
[1746748068015,6.46632688,163.93,163.9,18.88608476]
[1746748068621,0.36604815,163.93,163.92,26.0]
[1746748068818,6.46621285,163.93,163.92,26.0]
[1746748069207,6.46621285,163.93,163.9,18.88608476]
[1746748069403,0.36604815,163.93,163.92,26.0]
[1746748070423,0.36604815,163.93,163.92,44.88608476]
[1746748070726,0.36604815,163.93,163.91,44.88608476]
[1746748071131,0.36604815,163.93,163.92,18.88608476]
[1746748071305,0.36604815,163.93,163.91,45.38608476]
[1746748073524,0.36604815,163.93,163.91,26.5]
[1746748074517,6.46635899,163.93,163.91,26.5]
[1746748074713,6.46635899,163.93,163.91,26.0]
[1746748074917,0.36604815,163.93,163.91,44.88608476]
[1746748075124,0.36604815,163.93,163.92,18.88608476]
[1746748075308,0.36604815,163.93,163.91,44.88608476]
[1746748075721,0.36604815,163.93,163.92,18.88608476]
[1746748075919,42.303689,164.0,163.92,18.88608476]
[1746748075920,46.89673058,164.0,163.95,26.0]
[1746748076114,46.89673058,164.0,163.96,18.88608476]
[1746748076318,46.89673058,164.0,163.95,26.0]
[1746748076319,46.89673058,164.0,163.95,44.88608476]
[1746748076515,65.78281534,164.0,163.94,1.6265]
[1746748076831,18.88608476,163.99,163.94,20.51258476]
[1746748077358,46.89673058,164.0,163.95,18.88608476]
[1746748077533,18.88608476,163.99,163.95,18.88608476]
[1746748077927,46.89673058,164.0,163.95,18.88608476]
[1746748078120,18.88608476,163.99,163.95,18.88608476]
[1746748078425,24.98410312,163.99,163.95,18.88608476]
[1746748078742,6.09801836,163.99,163.95,18.88608476]
[1746748078919,46.89649697,164.0,163.95,18.88608476]
[1746748079419,18.88608476,163.99,163.95,18.88608476]
[1746748079812,18.88608476,163.98,163.95,26.0]
[1746748080031,24.9843962,163.98,163.94,1.6265]
[1746748080231,24.9843962,163.98,163.94,20.51258476]
[1746748080436,40.798889,164.0,163.95,18.88608476]
[1746748080625,46.89654593,164.0,163.95,18.88608476]